bitfinex/quotes_BTCUSD_20240819
["timestamp","ask_amount","ask_price","bid_price","bid_amount"]
[1724067826565,2.37087225,58191.0,58190.0,0.00138812]
[1724067827194,0.171874,58182.0,58181.0,0.05097354]
[1724067827440,0.35682569,58182.0,58181.0,0.05097354]
[1724067827645,0.35682569,58182.0,58181.0,0.05925283]
[1724067827808,0.35682569,58182.0,58181.0,0.05097354]
[1724067828228,0.35682569,58182.0,58181.0,0.05057354]
[1724067828560,0.35682569,58182.0,58181.0,0.06985283]
[1724067828683,0.35682569,58182.0,58181.0,0.13635283]
[1724067828893,0.18495169,58182.0,58181.0,0.13635283]
[1724067829109,0.48586557,58182.0,58181.0,0.13635283]
[1724067829333,0.48769135,58182.0,58181.0,0.18858011]
[1724067829539,0.48769135,58182.0,58181.0,0.18940011]
[1724067829952,0.35864731,58182.0,58181.0,0.18940011]
[1724067830783,0.70239531,58182.0,58181.0,0.18940011]
[1724067830983,0.35864731,58182.0,58181.0,0.18940011]
[1724067831449,0.35864731,58182.0,58181.0,0.14417283]
[1724067831655,0.18677331,58182.0,58181.0,0.31604983]
[1724067831828,0.12904939,58182.0,58181.0,0.31604983]
[1724067832607,0.10324169,58183.0,58182.0,0.656522]
[1724067832812,0.10324169,58184.0,58183.0,0.312771]
[1724067833013,0.10324169,58185.0,58184.0,0.455168]
[1724067833211,0.2938335,58185.0,58184.0,0.455168]
[1724067833443,0.2938335,58185.0,58184.0,0.46344471]
[1724067833684,0.10324169,58185.0,58184.0,0.46344471]
[1724067833886,0.10324169,58185.0,58184.0,0.29157671]
[1724067834219,0.10321865,58185.0,58184.0,0.29157671]
[1724067834441,0.10321865,58186.0,58184.0,0.29157671]
[1724067834641,0.10321865,58186.0,58185.0,0.1447]
[1724067834847,0.10321865,58186.0,58185.0,0.660296]
[1724067835080,0.10321865,58186.0,58185.0,0.66856592]
[1724067835228,0.10321865,58188.0,58187.0,0.171859]
[1724067835437,0.10321865,58188.0,58187.0,0.455859]
[1724067835640,0.10321865,58188.0,58187.0,0.46412892]
[1724067837311,0.29440098,58188.0,58187.0,0.46412892]
[1724067837515,0.10321865,58188.0,58187.0,0.46812892]
[1724067837716,0.07737063,58188.0,58187.0,0.32652892]
[1724067837884,0.07737063,58188.0,58187.0,0.46902892]
[1724067838089,0.07737063,58189.0,58188.0,0.1425]
[1724067838290,0.24922063,58190.0,58188.0,0.1425]
[1724067838501,0.24922063,58190.0,58188.0,0.15076954]
[1724067838905,0.24922063,58190.0,58188.0,0.1425]
[1724067839511,0.0515622,58189.0,58188.0,0.1425]
[1724067839916,0.0515622,58189.0,58188.0,0.1435]
[1724067840291,0.0515622,58189.0,58188.0,0.1425]
[1724067840702,0.0515622,58189.0,58188.0,0.1525]
[1724067840908,0.0515622,58189.0,58188.0,0.1505]
[1724067841318,0.0515622,58190.0,58189.0,0.1399]
[1724067841763,0.51619094,58191.0,58189.0,0.0813]
[1724067841764,0.56775314,58191.0,58189.0,0.0813]
[1724067841967,0.56775314,58191.0,58190.0,0.2878]
[1724067842172,0.51619094,58191.0,58190.0,0.29606954]
[1724067842382,0.56774325,58191.0,58190.0,0.29606954]
[1724067842800,0.51619094,58191.0,58190.0,0.29606954]
[1724067843188,0.51587094,58191.0,58190.0,0.32597649]
[1724067843605,0.51587094,58191.0,58190.0,0.32697649]
[1724067843774,0.51587094,58191.0,58190.0,0.31870695]
[1724067843975,0.51587094,58191.0,58190.0,0.32697649]
[1724067844181,0.51587094,58191.0,58190.0,0.33297649]
[1724067847738,0.51587094,58191.0,58190.0,0.16066954]
[1724067849690,0.51587094,58191.0,58190.0,0.01526954]
[1724067849691,1.20326094,58191.0,58190.0,0.01526954]
[1724067850012,1.20326094,58191.0,58190.0,0.007]
[1724067850013,1.37510794,58191.0,58190.0,0.007]
[1724067850216,1.42666025,58191.0,58190.0,0.007]
[1724067851378,1.37510794,58191.0,58190.0,0.007]
[1724067851782,1.4524364,58191.0,58190.0,0.007]
[1724067856037,1.7961314,58191.0,58190.0,0.007]
[1724067856257,1.90826023,58191.0,58190.0,0.007]
[1724067856467,2.26194101,58191.0,58190.0,0.007]
[1724067856672,2.19646023,58191.0,58190.0,0.007]
[1724067857342,2.25976356,58191.0,58190.0,0.007]
[1724067858377,2.25968356,58191.0,58190.0,0.007]
[1724067858957,2.41434049,58191.0,58190.0,0.007]
[1724067860574,2.41135321,58191.0,58190.0,0.007]
[1724067860779,2.25678204,58191.0,58190.0,0.007]
[1724067861011,2.24624432,58191.0,58190.0,0.007]
[1724067863378,2.40081549,58191.0,58190.0,0.007]
[1724067864323,2.24624432,58191.0,58190.0,0.007]
[1724067865550,2.24624432,58191.0,58190.0,0.00782]
[1724067867958,2.84113818,58191.0,58190.0,0.00782]
[1724067869112,2.84113818,58191.0,58190.0,0.00082]
[1724067869351,2.84213818,58191.0,58190.0,0.00182]
[1724067871135,2.60309435,58191.0,58190.0,0.00182]
[1724067871384,2.44853932,58191.0,58190.0,0.00182]
[1724067871609,1.55204599,58191.0,58190.0,0.14742]
[1724067871832,1.6808301,58191.0,58190.0,0.14742]
[1724067872036,1.6808301,58191.0,58190.0,0.00182]
[1724067872248,1.55204599,58191.0,58190.0,0.00182]
[1724067872489,1.89574099,58191.0,58190.0,0.00182]
[1724067872702,1.55104599,58191.0,58190.0,0.00082]
[1724067873340,1.89474099,58191.0,58190.0,0.00282]
[1724067873546,1.67983985,58191.0,58190.0,0.00282]
[1724067873772,1.55104599,58191.0,58190.0,0.00282]
[1724067874204,1.55204599,58191.0,58190.0,0.00282]
[1724067874415,1.55104599,58191.0,58190.0,0.00282]
[1724067874824,1.55314118,58191.0,58190.0,0.00282]
[1724067875909,1.89683618,58191.0,58190.0,0.00282]
[1724067876347,1.55314118,58191.0,58190.0,0.00282]
[1724067876957,1.89683618,58191.0,58190.0,0.00282]
[1724067877782,1.55314118,58191.0,58190.0,0.00282]
[1724067878198,1.89683618,58191.0,58190.0,0.00282]
[1724067881216,1.96012785,58191.0,58190.0,0.00282]
[1724067881638,1.61643285,58191.0,58190.0,0.00282]
[1724067882372,1.96012785,58191.0,58190.0,0.00282]
[1724067884427,2.11468909,58191.0,58190.0,0.00282]
[1724067884636,1.96012785,58191.0,58190.0,0.00282]
[1724067886180,2.11468909,58191.0,58190.0,0.00282]
[1724067886384,1.96012785,58191.0,58190.0,0.00282]
[1724067886614,2.11468909,58191.0,58190.0,0.00282]
[1724067887041,1.96012785,58191.0,58190.0,0.00282]
[1724067887478,2.11468909,58191.0,58190.0,0.00282]
[1724067888869,1.78301461,58191.0,58190.0,0.00282]
[1724067889091,2.1131171,58191.0,58190.0,0.00282]
[1724067889311,2.20914768,58191.0,58190.0,0.00282]
[1724067889521,2.11335513,58191.0,58190.0,0.00282]
[1724067891231,2.20975194,58191.0,58190.0,0.00282]
[1724067893475,1.78301461,58191.0,58190.0,0.00282]
[1724067893674,2.21056474,58191.0,58190.0,0.00282]
[1724067896282,2.20968026,58191.0,58190.0,0.00282]
[1724067901138,2.3837746,58191.0,58190.0,0.00282]
[1724067901667,1.95854004,58191.0,58190.0,0.00282]
[1724067901911,2.38371595,58191.0,58190.0,0.00282]
[1724067902111,2.46241595,58191.0,58190.0,0.00282]
[1724067902290,2.69761943,58191.0,58190.0,0.00282]
[1724067902513,2.35392443,58191.0,58190.0,0.00282]
[1724067902714,2.70061943,58191.0,58190.0,0.00282]
[1724067904546,3.06931443,58191.0,58190.0,0.00042778]
[1724067904783,3.43167916,58191.0,58190.0,0.00042778]
[1724067904987,3.43167916,58191.0,58190.0,4.495e-05]
[1724067905400,3.43167916,58191.0,58181.0,0.00082]
[1724067905401,1.284118,58182.0,58181.0,0.00082]
[1724067905618,2.43186949,58182.0,58181.0,0.00082]
[1724067906014,2.77561749,58182.0,58181.0,0.00082]
[1724067906620,2.77561749,58182.0,58181.0,0.00482]
[1724067907870,2.83701749,58182.0,58181.0,0.00482]
[1724067909338,3.01095001,58182.0,58181.0,0.00482]
[1724067910299,3.07207957,58182.0,58181.0,0.00482]
[1724067910501,2.89814705,58182.0,58181.0,0.00482]
[1724067910934,2.9126592,58182.0,58181.0,0.00482]
[1724067911309,2.9096592,58182.0,58181.0,0.00482]
[1724067911511,2.85152964,58182.0,58181.0,0.00082]
[1724067911693,2.71512964,58182.0,58181.0,0.00182]
[1724067911894,3.03141418,58182.0,58181.0,0.00182]
[1724067912314,2.85552964,58182.0,58181.0,0.00082]
[1724067912508,2.22798164,58182.0,58181.0,0.00082]
[1724067913138,1.96961437,58182.0,58181.0,0.00082]
[1724067913335,2.12414037,58182.0,58181.0,0.00082]
[1724067914008,1.78039237,58182.0,58181.0,0.00082]
[1724067914223,1.69132882,58182.0,58181.0,0.14112]
[1724067914445,1.5625747,58182.0,58181.0,0.14112]
[1724067914622,1.66557447,58182.0,58181.0,0.14112]
[1724067915221,1.66057447,58182.0,58181.0,0.14112]
[1724067915423,1.66859136,58182.0,58181.0,0.14112]
[1724067915628,1.67059136,58182.0,58181.0,0.14412]
[1724067915865,1.66859136,58182.0,58181.0,0.14412]
[1724067916066,1.66859136,58182.0,58181.0,0.14112]
[1724067916185,1.66959136,58182.0,58181.0,0.14112]
[1724067916386,1.66959136,58182.0,58181.0,0.14512]
[1724067916794,1.56659264,58182.0,58181.0,0.14512]
[1724067917016,0.69679074,58182.0,58181.0,0.14512]
[1724067917225,0.69679074,58182.0,58181.0,0.15346064]
[1724067917226,0.51655,58182.0,58181.0,0.15346064]
[1724067919350,0.51655,58182.0,58181.0,0.1832105]
[1724067919579,0.51655,58182.0,58181.0,0.45476504]
[1724067920221,0.51655,58182.0,58181.0,0.45576504]
[1724067920459,0.51655,58182.0,58181.0,0.46998544]
[1724067920668,0.51655,58182.0,58181.0,0.46598544]
[1724067920949,0.00024094,58191.0,58190.0,0.001]
[1724067921159,0.00024094,58191.0,58190.0,0.45389073]
[1724067921361,0.00024094,58191.0,58190.0,0.56217]
[1724067921564,0.00024094,58191.0,58190.0,0.56417]
[1724067921983,0.00902001,58197.0,58194.0,0.005]
[1724067922221,0.0002,58199.0,58190.0,0.57517]
[1724067922222,0.0002,58199.0,58198.0,0.003]
[1724067922434,0.0002,58199.0,58198.0,0.40018991]
[1724067922652,0.0002,58199.0,58198.0,0.64122391]
[1724067922847,0.0002,58199.0,58198.0,0.55758642]
[1724067923278,0.0002,58199.0,58198.0,0.61558642]
[1724067923517,0.0002,58199.0,58198.0,0.56441971]
[1724067923931,0.0002,58199.0,58198.0,2.06841971]
[1724067924544,0.0002,58199.0,58198.0,2.28151971]
[1724067924965,0.0002,58199.0,58198.0,2.29551971]
[1724067925376,0.0002,58199.0,58198.0,2.34668642]
[1724067925589,0.0002,58199.0,58198.0,2.36068642]
[1724067926476,0.0002,58199.0,58198.0,2.33251971]
[1724067926680,0.0002,58199.0,58198.0,2.32508434]
[1724067926879,0.0002,58199.0,58198.0,0.82508434]
[1724067927339,0.0002,58199.0,58198.0,2.32508434]
[1724067927536,0.0011009,58199.0,58198.0,2.32508434]
[1724067930093,0.0011009,58199.0,58198.0,2.30208434]
[1724067930659,0.0011009,58199.0,58198.0,0.80208434]
[1724067933260,0.0010209,58199.0,58198.0,0.80208434]
[1724067934502,0.0010209,58199.0,58198.0,2.30208434]
[1724067937789,0.0010209,58199.0,58198.0,0.80208434]
[1724067938207,0.0010209,58199.0,58198.0,2.30208434]
[1724067940515,0.0010209,58199.0,58198.0,2.30108434]
[1724067941178,0.0010209,58199.0,58198.0,0.80208434]
[1724067941788,0.0010209,58199.0,58198.0,2.30208434]
[1724067943889,0.0010209,58199.0,58198.0,2.30108434]
[1724067944306,0.0010209,58199.0,58198.0,1.94558434]
[1724067944513,0.0010209,58199.0,58198.0,2.08878434]
[1724067944719,0.0010209,58199.0,58198.0,0.58878434]
[1724067945342,0.0010209,58199.0,58198.0,2.08878434]
[1724067946403,0.0010209,58199.0,58198.0,2.07478434]
[1724067946614,0.0010209,58199.0,58198.0,2.08878434]
[1724067946816,0.0010209,58199.0,58198.0,2.07478434]
[1724067947241,0.0010209,58199.0,58198.0,2.08878434]
[1724067947670,0.0010209,58199.0,58198.0,2.07478434]
[1724067948074,0.0010209,58199.0,58198.0,2.08878434]
[1724067950200,0.0010209,58199.0,58198.0,0.52978434]
[1724067950406,0.0010209,58199.0,58198.0,0.59067921]
[1724067950756,0.0010209,58199.0,58198.0,2.09067921]
[1724067950970,0.0010209,58199.0,58198.0,2.14877921]
[1724067953376,0.0010209,58199.0,58198.0,2.00657921]
[1724067953581,0.0010209,58199.0,58198.0,0.64877921]
[1724067954200,0.0010209,58199.0,58198.0,2.14877921]
[1724067957055,0.0010209,58199.0,58198.0,2.17577921]
[1724067957260,0.0010209,58199.0,58198.0,0.67577921]
[1724067957671,0.0010209,58199.0,58198.0,2.22006312]
[1724067958078,0.0010209,58199.0,58198.0,2.27169109]
[1724067958284,0.0010209,58199.0,58198.0,2.22740718]
[1724067959357,0.0010209,58199.0,58198.0,2.14777921]
[1724067959684,0.0010209,58199.0,58198.0,2.17577921]
[1724067960686,0.0010209,58199.0,58198.0,2.17177921]
[1724067960889,0.0010209,58199.0,58198.0,2.17577921]
[1724067963020,0.0010209,58199.0,58198.0,2.17659821]
[1724067963379,0.0010209,58199.0,58198.0,2.17359821]
[1724067963580,0.0010209,58199.0,58198.0,2.17459821]
[1724067963945,0.0010209,58199.0,58198.0,2.17659821]
[1724067964288,0.0010209,58199.0,58198.0,2.17459821]
[1724067964718,0.0010209,58199.0,58198.0,2.17659821]
[1724067966203,0.0010209,58199.0,58198.0,2.22800444]
[1724067967221,0.0010209,58199.0,58198.0,2.17659821]
[1724067967709,0.0010209,58199.0,58198.0,2.36497341]
[1724067968124,0.02324491,58214.0,58213.0,0.1422]
[1724067968332,0.02324491,58214.0,58213.0,0.41718971]
[1724067968536,0.02324491,58214.0,58213.0,0.42525022]
[1724067969363,0.0002,58219.0,58213.0,0.45425022]
[1724067969565,0.0002,58219.0,58216.0,0.1422]
[1724067969779,0.0002,58219.0,58218.0,0.001]
[1724067969947,0.0002,58219.0,58218.0,0.27255454]
[1724067970159,0.0002,58219.0,58218.0,0.34293465]
[1724067970691,0.0002,58219.0,58218.0,0.34693465]
[1724067970898,0.0002,58219.0,58218.0,0.44923465]
[1724067971101,0.0002,58219.0,58218.0,2.00086262]
[1724067972194,0.0002,58219.0,58218.0,2.02586262]
[1724067972402,0.0002,58219.0,58218.0,2.38106262]
[1724067972604,0.0002,58219.0,58218.0,2.31843465]
[1724067972827,0.0002,58219.0,58218.0,2.30043465]
[1724067973040,0.0002,58219.0,58218.0,2.32499996]
[1724067974280,0.0002,58219.0,58218.0,2.32699996]
[1724067974527,0.0002,58219.0,58218.0,2.32499996]
[1724067974735,0.0002,58219.0,58218.0,2.22269996]
[1724067974940,0.0002,58219.0,58218.0,1.86749996]
[1724067975580,0.0011009,58219.0,58218.0,1.86749996]
[1724067976200,0.0011009,58219.0,58218.0,1.86649996]
[1724067976367,0.0789009,58219.0,58218.0,0.36649996]
[1724067977342,0.0789009,58219.0,58218.0,0.35249996]
[1724067977547,0.0789009,58219.0,58218.0,0.36649996]
[1724067978153,0.0787409,58219.0,58218.0,0.36649996]
[1724067978318,0.0787409,58219.0,58218.0,0.35249996]
[1724067978725,0.0787409,58219.0,58218.0,0.36649996]
[1724067982561,0.0009409,58219.0,58218.0,0.36649996]
[1724067982798,0.0009409,58219.0,58218.0,0.36749996]
[1724067983012,0.0009409,58219.0,58218.0,0.36649996]
[1724067983745,0.0009409,58219.0,58218.0,0.36749996]
[1724067984675,0.0009409,58219.0,58218.0,0.72669996]
[1724067985552,0.0009409,58219.0,58218.0,0.82479996]
[1724067987566,0.0009409,58219.0,58218.0,2.38679996]
[1724067991729,0.00902001,58224.0,58223.0,0.1456]
[1724067991936,0.00902001,58224.0,58223.0,0.44015454]
[1724067992152,0.1,58227.0,58226.0,0.146]
[1724067992153,0.08028354,58227.0,58226.0,0.146]
[1724067992364,0.0622,58241.0,58229.0,0.5012]
[1724067992572,0.0622,58241.0,58229.0,0.79575454]
[1724067992784,0.0809,58237.0,58229.0,2.29970183]
[1724067992994,0.0604,58233.0,58229.0,2.23650183]
[1724067993412,0.0604,58233.0,58229.0,2.15870183]
[1724067993829,0.0604,58233.0,58229.0,2.17270183]
[1724067994034,0.0824,58231.0,58229.0,2.17270183]
[1724067994241,0.0824,58231.0,58229.0,2.14970183]
[1724067994448,0.0824,58231.0,58229.0,2.16370183]
[1724067995477,0.0824,58231.0,58229.0,2.14970183]
[1724067995889,0.0824,58231.0,58229.0,2.16370183]
[1724067996096,0.0824,58231.0,58229.0,2.14970183]
[1724067996298,0.0824,58231.0,58229.0,2.16370183]
[1724067996935,0.0604,58233.0,58229.0,0.66770183]
[1724067997554,0.0604,58233.0,58229.0,2.16770183]
[1724067997965,0.0604,58233.0,58229.0,2.16370183]
[1724067998371,0.09102001,58230.0,58229.0,2.16370183]
[1724067998577,0.09102001,58230.0,58229.0,2.16270183]
[1724067999857,0.09102001,58230.0,58229.0,1.80750183]
[1724068000496,0.09102001,58230.0,58229.0,0.30750183]
[1724068000902,0.09102001,58230.0,58229.0,1.80750183]
[1724068001108,0.15292001,58230.0,58229.0,1.80750183]
[1724068002476,0.07092001,58230.0,58229.0,1.80750183]
[1724068003933,0.07092001,58230.0,58229.0,0.30750183]
[1724068004349,0.00902001,58230.0,58229.0,0.66370183]
[1724068004597,0.00902001,58230.0,58229.0,2.16370183]
[1724068007482,0.00902001,58230.0,58229.0,0.66370183]
[1724068007923,0.00902001,58230.0,58229.0,2.16370183]
[1724068010938,0.00902001,58230.0,58229.0,0.66370183]
[1724068011434,0.00902001,58230.0,58229.0,2.16370183]
[1724068013732,0.07302001,58250.0,58238.0,0.1408]
[1724068013934,0.51177509,58246.0,58238.0,0.70044412]
[1724068014136,0.07302001,58250.0,58238.0,0.80044412]
[1724068014615,0.07302001,58250.0,58238.0,0.80244412]
[1724068015010,0.07302001,58250.0,58238.0,0.81644412]
[1724068015216,0.07302001,58250.0,58238.0,0.80244412]
[1724068015548,0.07302001,58250.0,58238.0,0.81244412]
[1724068016654,0.07302001,58250.0,58238.0,0.81444412]
[1724068017055,0.07302001,58250.0,58238.0,0.83044412]
[1724068017253,0.07302001,58250.0,58238.0,0.84070173]
[1724068018152,0.07302001,58250.0,58238.0,0.82670173]
[1724068018354,0.07302001,58250.0,58238.0,0.81270173]
[1724068018686,0.07302001,58250.0,58238.0,0.82670173]
[1724068018888,0.07302001,58250.0,58238.0,0.84070173]
[1724068019721,0.07302001,58250.0,58238.0,0.82670173]
[1724068020131,0.07302001,58250.0,58238.0,0.84070173]
[1724068020737,0.0663,58242.0,58238.0,0.77390173]
[1724068021145,0.0663,58242.0,58238.0,0.77590173]
[1724068021524,0.0663,58242.0,58238.0,0.77790173]
[1724068021750,0.0663,58242.0,58238.0,0.70090173]
[1724068022989,0.0814,58245.0,58238.0,0.77630173]
[1724068023191,0.0629,58246.0,58238.0,0.77830173]
[1724068023192,0.00012,58239.0,58238.0,0.77830173]
[1724068024229,0.00012,58239.0,58238.0,0.76430173]
[1724068024442,0.00012,58239.0,58238.0,0.77830173]
[1724068024863,0.00012,58239.0,58238.0,0.76430173]
[1724068025070,0.00902001,58250.0,58238.0,0.76430173]
[1724068025071,0.00902001,58250.0,58249.0,0.005]
[1724068025272,0.00902001,58250.0,58249.0,0.27505454]
[1724068025478,0.00902001,58250.0,58249.0,1.78634521]
[1724068025679,0.00902001,58250.0,58249.0,1.88634521]
[1724068026300,0.00902001,58250.0,58249.0,1.90034521]
[1724068026703,0.00902001,58250.0,58249.0,1.91434521]
[1724068026909,0.00902001,58250.0,58249.0,1.90034521]
[1724068027328,0.00902001,58250.0,58249.0,1.91434521]
[1724068027950,0.00902001,58250.0,58249.0,1.88634521]
[1724068028955,0.00902001,58250.0,58249.0,1.90034521]
[1724068029158,0.00902001,58250.0,58249.0,1.88634521]
[1724068029556,0.00902001,58250.0,58249.0,1.93479521]
[1724068030135,0.00902001,58250.0,58249.0,1.93126324]
[1724068030661,0.00902001,58250.0,58249.0,1.94526324]
[1724068030861,0.00902001,58250.0,58249.0,2.00576324]
[1724068031062,0.00902001,58250.0,58249.0,1.99176324]
[1724068031425,0.00902001,58250.0,58249.0,2.01976324]
[1724068031628,0.00902001,58250.0,58249.0,2.00576324]
[1724068032075,0.00902001,58250.0,58249.0,2.01976324]
[1724068032412,0.00902001,58250.0,58249.0,2.00576324]
[1724068032622,0.00902001,58250.0,58249.0,2.01976324]
[1724068032835,0.00902001,58250.0,58249.0,2.00576324]
[1724068033263,0.00902001,58250.0,58249.0,2.01976324]
[1724068033678,0.00902001,58250.0,58249.0,2.00233051]
[1724068034302,0.00902001,58250.0,58249.0,2.01633051]
[1724068036391,0.00902001,58250.0,58249.0,0.51633051]
[1724068036984,0.00902001,58250.0,58249.0,2.01633051]
[1724068041200,0.00902001,58250.0,58249.0,1.95583051]
[1724068042550,0.009009,58258.0,58257.0,0.0876]
[1724068042748,0.009009,58258.0,58257.0,0.63735454]
[1724068042955,0.009009,58258.0,58257.0,0.74513317]
[1724068043921,0.009009,58258.0,58257.0,0.75913317]
[1724068044326,0.009009,58258.0,58257.0,0.67653317]
[1724068045314,0.009009,58258.0,58257.0,0.68853317]
[1724068045550,0.009009,58258.0,58257.0,0.67453317]
[1724068046291,0.154009,58258.0,58257.0,2.1869295]
[1724068046502,0.154009,58258.0,58257.0,2.1729295]
[1724068046703,0.154009,58258.0,58257.0,2.2009295]
[1724068048544,0.071109,58258.0,58257.0,2.2009295]
[1724068048951,0.009009,58258.0,58257.0,2.2009295]
[1724068049107,0.009009,58258.0,58257.0,2.2811295]
[1724068049772,0.009009,58258.0,58257.0,2.3155795]
[1724068050013,0.009009,58258.0,58257.0,2.3785795]
[1724068050196,0.009009,58258.0,58257.0,2.3645795]
[1724068050666,0.009009,58258.0,58257.0,2.3785795]
[1724068051876,0.009009,58258.0,58257.0,2.3505795]
[1724068052108,0.009009,58258.0,58257.0,2.3645795]
[1724068053131,0.009009,58258.0,58257.0,2.3505795]
[1724068053331,0.009009,58258.0,58257.0,2.3155795]
[1724068053739,0.009009,58258.0,58257.0,2.2875795]
[1724068055180,0.009009,58258.0,58257.0,2.3015795]
[1724068056682,0.009009,58258.0,58257.0,2.3155795]
[1724068060695,0.009009,58258.0,58257.0,2.36665691]
[1724068060900,0.009009,58258.0,58257.0,2.42885691]
[1724068061146,0.009009,58258.0,58257.0,2.58436392]
[1724068061381,0.009009,58258.0,58257.0,2.68651874]
[1724068061561,0.0601,58267.0,58266.0,0.3602]
[1724068061778,0.0601,58267.0,58266.0,0.66247373]
[1724068062433,0.0657,58270.0,58269.0,0.005]
[1724068062633,0.0657,58270.0,58269.0,0.20298613]
[1724068062845,0.0657,58270.0,58269.0,1.81069931]
[1724068063581,0.152409,58273.0,58272.0,0.005]
[1724068063783,0.152409,58273.0,58272.0,0.62408605]
[1724068063784,0.009009,58273.0,58272.0,0.62408605]
[1724068064069,0.0654,58279.0,58278.0,0.005]
[1724068064223,0.0654,58279.0,58278.0,0.55475454]
[1724068064423,0.0654,58279.0,58278.0,0.65475454]
[1724068064627,0.0654,58279.0,58278.0,0.65846772]
[1724068064835,0.0654,58279.0,58278.0,0.66046772]
[1724068065028,0.0654,58279.0,58278.0,0.65846772]
[1724068065245,0.1467,58279.0,58278.0,0.63546772]
[1724068066006,0.1467,58279.0,58278.0,0.64946772]
[1724068066524,0.1467,58279.0,58278.0,0.66346772]
[1724068066725,0.1467,58279.0,58278.0,0.68646772]
[1724068067436,0.1467,58279.0,58278.0,0.69886064]
[1724068067639,0.1467,58279.0,58278.0,0.69686064]
[1724068067834,0.0654,58279.0,58278.0,0.69686064]
[1724068068355,0.06532,58279.0,58278.0,0.68486064]
[1724068068559,0.06532,58279.0,58278.0,0.69686064]
[1724068068877,0.00012,58279.0,58278.0,0.76456064]
[1724068069354,0.00012,58279.0,58278.0,0.69686064]
[1724068069556,0.00012,58279.0,58278.0,2.18286064]
[1724068069991,0.00012,58279.0,58278.0,2.18686064]
[1724068070242,0.00012,58279.0,58278.0,2.18286064]
[1724068070438,0.00012,58279.0,58278.0,2.18486064]
[1724068070689,0.00012,58279.0,58278.0,2.19686064]
[1724068071010,0.13882,58279.0,58278.0,2.19686064]
[1724068071200,0.13882,58279.0,58278.0,2.20086064]
[1724068071544,0.13882,58279.0,58278.0,2.18686064]
[1724068071909,0.06182,58279.0,58278.0,2.18686064]
[1724068072361,0.06182,58279.0,58278.0,2.20086064]
[1724068072564,0.06182,58279.0,58278.0,2.16886064]
[1724068072785,0.06182,58279.0,58278.0,2.18286064]
[1724068072987,0.06182,58279.0,58278.0,2.19886064]
[1724068073391,0.06182,58279.0,58278.0,2.20086064]
[1724068074628,0.06182,58279.0,58278.0,2.18686064]
[1724068075037,0.06182,58279.0,58278.0,2.20086064]
[1724068075247,0.06182,58279.0,58278.0,2.19686064]
[1724068075451,0.06182,58279.0,58278.0,2.18286064]
[1724068076170,0.14242,58279.0,58278.0,0.31866064]
[1724068076296,0.14242,58279.0,58278.0,0.29066064]
[1724068076756,0.14242,58279.0,58278.0,1.80466064]
[1724068077132,0.14242,58279.0,58278.0,1.79066064]
[1724068077385,0.14242,58279.0,58278.0,1.80466064]
[1724068077695,0.14242,58279.0,58278.0,1.81866064]
[1724068077895,0.14242,58279.0,58278.0,1.84166064]
[1724068078099,0.14242,58279.0,58278.0,1.82766064]
[1724068078717,0.14242,58279.0,58278.0,1.84166064]
[1724068079528,0.00012,58279.0,58278.0,1.98156064]
[1724068079734,0.00012,58279.0,58278.0,1.98356064]
[1724068080056,0.00012,58279.0,58278.0,1.92286064]
[1724068080908,0.0010209,58279.0,58278.0,1.92286064]
[1724068081109,0.0010209,58279.0,58278.0,1.84566064]
[1724068082412,0.0010209,58279.0,58278.0,1.99046064]
[1724068082635,0.009009,58283.0,58278.0,1.99046064]
[1724068082636,0.009009,58283.0,58282.0,0.1498]
[1724068082839,0.009009,58283.0,58282.0,0.68741102]
[1724068083042,0.009009,58283.0,58282.0,0.55504955]
[1724068083375,0.009009,58283.0,58282.0,2.05504955]
[1724068083576,0.009009,58283.0,58282.0,2.13164123]
[1724068083719,0.009009,58283.0,58282.0,1.93967208]
[1724068083927,0.009009,58283.0,58282.0,1.9881211]
[1724068084329,0.009009,58283.0,58282.0,1.93705655]
[1724068084891,0.009009,58283.0,58282.0,2.19971323]
[1724068085074,0.009009,58283.0,58282.0,1.95105655]
[1724068085285,0.009009,58283.0,58282.0,2.18614273]
[1724068085486,0.009009,58283.0,58282.0,1.93705655]
[1724068085636,0.009009,58283.0,58282.0,1.98810008]
[1724068085847,0.009009,58283.0,58282.0,2.00209956]
[1724068086052,0.009009,58283.0,58282.0,1.92305655]
[1724068086249,0.009009,58283.0,58282.0,1.98810127]
[1724068086460,0.009009,58283.0,58282.0,1.95105655]
[1724068087264,0.151309,58283.0,58282.0,1.85165655]
[1724068087531,0.151309,58283.0,58282.0,0.19320655]
[1724068088079,0.151309,58283.0,58282.0,0.17920655]
[1724068088496,0.151309,58283.0,58282.0,0.19320655]
[1724068089101,0.151309,58283.0,58282.0,0.18020655]
[1724068089425,0.151309,58283.0,58282.0,0.20820655]
[1724068089678,0.151309,58283.0,58282.0,0.19420655]
[1724068090048,0.151309,58283.0,58282.0,0.20820655]
[1724068090241,0.151309,58283.0,58282.0,0.30820655]
[1724068090551,0.151309,58283.0,58282.0,0.31163765]
[1724068090760,0.151309,58283.0,58282.0,0.33520655]
[1724068091132,0.151309,58283.0,58282.0,0.33863771]
[1724068091352,0.009009,58283.0,58282.0,0.33520655]
[1724068091589,0.009009,58283.0,58282.0,1.83520655]
[1724068093115,0.009009,58283.0,58282.0,1.83120655]
[1724068093753,0.069209,58283.0,58282.0,1.83120655]
[1724068094912,0.069209,58283.0,58282.0,1.83520655]
[1724068095143,0.069209,58283.0,58282.0,1.83120655]
[1724068095987,0.069209,58283.0,58282.0,1.83520655]
[1724068096344,0.069209,58283.0,58282.0,1.83120655]
[1724068098303,0.150609,58283.0,58282.0,1.80720655]
[1724068099034,0.150609,58283.0,58282.0,1.81020655]
[1724068099035,0.069209,58283.0,58282.0,1.81020655]
[1724068099442,0.009009,58283.0,58282.0,1.81020655]
[1724068099706,0.009009,58283.0,58282.0,1.83320655]
[1724068099912,0.009009,58283.0,58282.0,1.83520655]
[1724068100165,0.009009,58283.0,58282.0,1.83120655]
[1724068101170,0.087709,58283.0,58282.0,1.83020655]
[1724068101380,0.148909,58283.0,58282.0,1.80720655]
[1724068102747,0.148909,58283.0,58282.0,1.80820655]
[1724068102926,0.148909,58283.0,58282.0,1.83120655]
[1724068103343,0.070209,58283.0,58282.0,1.83320655]
[1724068104030,0.009009,58283.0,58282.0,1.83320655]
[1724068104750,0.009009,58283.0,58282.0,1.83120655]
[1724068105245,0.009009,58283.0,58282.0,1.83020655]
[1724068105671,0.009009,58283.0,58282.0,1.83120655]
[1724068107267,0.009009,58283.0,58282.0,1.83020655]
[1724068107471,0.009009,58283.0,58282.0,1.83120655]